[Event "Fagernes GM Swiss 2020"]
[Site "Fagernes"]
[Date "2020.10.04"]
[Round "1.17"]
[White "Oye-Stromberg, Alexander"]
[Black "Lund, Gunnar"]
[Result "0-1"]
[ECO "B08"]
[WhiteElo "2048"]
[BlackElo "2302"]
[Annotator "ChessBase"]
[PlyCount "82"]
[EventDate "2020.10.04"]
[EventType "swiss"]
[EventCountry "NOR"]
[SourceTitle "playchess.com"]
[Source "ChessBase"]
[SourceQuality "1"]
[TimeControl "40/6000+30:2400+30"]

1. e4 {[%emt 0:00:00]} d6 {[%emt 0:00:00]} 2. Nf3 {[%emt 0:00:21]} Nf6 {[%emt 0:00:00]} 3. Nc3 {[%emt 0:00:12]} g6 {[%emt 0:00:05]} 4. d4 {[%emt 0:00:23]} Bg7 {[%emt 0:00:07]} 5. Be2 {[%emt 0:00:37]} O-O {[%emt 0:00:09]} 6. h3 {[%emt 0:01:09]} c6 {[%emt 0:00:07]} 7. Bf4 {[%emt 0:01:30]} b5 {[%emt 0:01:42]} 8. e5 {[%emt 0:03:47]} Ne8 {[%emt 0:03:10]} 9. Qd2 {[%emt 0:22:31]} Nd7 {[%emt 0:04:27]} 10. h4 {[%emt 0:06:00]} c5 {[%emt 0:27:52]} 11. dxc5 {[%emt 0:17:25]} b4 {[%emt 0:04:57]} 12. Nb5 {[%emt 0:22:04]} a6 {[%emt 0:09:00]} 13. c6 {[%emt 0:11:28]} axb5 {[%emt 0:00:18]} 14. cxd7 {[%emt 0:00:04]} Qxd7 {[%emt 0:00:54]} 15. h5 {[%emt 0:02:40]} dxe5 {[%emt 0:02:40]} 16. Qxd7 {[%emt 0:01:28]} Bxd7 {[%emt 0:00:03]} 17. Nxe5 {[%emt 0:00:07]} Be6 {[%emt 0:00:09]} 18. Nc6 {[%emt 0:06:01]} f5 {[%emt 0:03:22]} 19. hxg6 {[%emt 0:01:25]} hxg6 {[%emt 0:00:18]} 20. Be5 {[%emt 0:01:57]} Bxe5 {[%emt 0:00:10]} 21. Nxe5 {[%emt 0:00:04]} Kg7 {[%emt 0:00:04]} 22. Nc6 {[%emt 0:01:09]} b3 {[%emt 0:08:16]} 23. cxb3 {[%emt 0:00:21]} Bxb3 {[%emt 0:02:25]} 24. Nd4 {[%emt 0:01:09]} Bd5 {[%emt 0:06:08]} 25. Bf3 {[%emt 0:02:14]} Bxf3 {[%emt 0:00:02]} 26. Ne6+ {[%emt 0:00:20]} Kf7 {[%emt 0:04:02]} 27. Nxf8 {[%emt 0:00:12]} Bxg2 {[%emt 0:00:16]} 28. Rg1 {[%emt 0:00:05]} Kxf8 {[%emt 0:00:19]} 29. Rxg2 {[%emt 0:00:06]} Kf7 {[%emt 0:00:10]} 30. Rg3 {[%emt 0:02:26]} Nd6 {[%emt 0:00:07]} 31. Ra3 {[%emt 0:01:20]} Rh8 {[%emt 0:02:37]} 32. Ke2 {[%emt 0:00:15]} g5 {[%emt 0:00:07]} 33. Rd1 {[%emt 0:01:39]} g4 {[%emt 0:00:12]} 34. Rad3 {[%emt 0:01:26]} Rh2 {[%emt 0:01:12]} 35. Kf1 {[%emt 0:01:39]} Ne4 {[%emt 0:00:09]} 36. f3 {[%emt 0:01:27]} Rf2+ {[%emt 0:00:30]} 37. Kg1 {[%emt 0:00:33]} gxf3 {[%emt 0:00:09]} 38. Rc1 {[%emt 0:00:48]} Rg2+ {[%emt 0:00:19]} 39. Kf1 {[%emt 0:00:03]} Ng3+ {[%emt 0:01:09]} 40. Ke1 {[%emt 0:00:04]} f2+ {[%emt 0:00:15]} 41. Kd1 {[%emt 0:40:06]} f1=R# {[%emt 0:40:10]} 0-1

[Event "Fagernes GM Swiss 2020"]
[Site "Fagernes"]
[Date "2020.10.04"]
[Round "1.18"]
[White "Vitenberg, Noam Aviv"]
[Black "Krivenko, Dion"]
[Result "1-0"]
[ECO "E91"]
[WhiteElo "2298"]
[BlackElo "2047"]
[Annotator "ChessBase"]
[PlyCount "140"]
[EventDate "2020.10.04"]
[EventType "swiss"]
[EventCountry "NOR"]
[SourceTitle "playchess.com"]
[Source "ChessBase"]
[SourceQuality "1"]
[TimeControl "40/6000+30:2400+30"]

1. Nf3 {[%emt 0:00:00]} Nf6 {[%emt 0:00:00]} 2. c4 {[%emt 0:00:27]} g6 {[%emt 0:00:00]} 3. Nc3 {[%emt 0:00:36]} Bg7 {[%emt 0:00:09]} 4. e4 {[%emt 0:00:22]} d6 {[%emt 0:00:14]} 5. d4 {[%emt 0:00:33]} O-O {[%emt 0:00:11]} 6. Be2 {[%emt 0:00:23]} Nbd7 {[%emt 0:01:02]} 7. Be3 {[%emt 0:00:48]} Ng4 {[%emt 0:11:57]} 8. Bd2 {[%emt 0:06:44]} c5 {[%emt 0:03:19]} 9. d5 {[%emt 0:03:55]} Re8 {[%emt 0:20:23]} 10. O-O {[%emt 0:03:58]} Nge5 {[%emt 0:01:53]} 11. Ne1 {[%emt 0:05:27]} Nb6 {[%emt 0:04:53]} 12. b3 {[%emt 0:04:44]} e6 {[%emt 0:04:30]} 13. Rc1 {[%emt 0:04:41]} exd5 {[%emt 0:01:42]} 14. exd5 {[%emt 0:06:58]} Qh4 {[%emt 0:14:33]} 15. Nb5 {[%emt 0:04:45]} Qe7 {[%emt 0:18:55]} 16. f4 {[%emt 0:12:21]} a6 {[%emt 0:07:32]} 17. Nxd6 {[%emt 0:06:50]} Qxd6 {[%emt 0:01:02]} 18. fxe5 {[%emt 0:00:15]} Qxe5 {[%emt 0:01:22]} 19. Rf2 {[%emt 0:01:41]} Bf5 {[%emt 0:06:37]} 20. Bd3 {[%emt 0:03:43]} Bxd3 {[%emt 0:04:47]} 21. Nxd3 {[%emt 0:01:07]} Qe7 {[%emt 0:01:39]} 22. Bc3 {[%emt 0:02:06]} Bxc3 {[%emt 0:00:29]} 23. Rxc3 {[%emt 0:00:14]} Nd7 {[%emt 0:00:57]} 24. Rcc2 {[%emt 0:04:29]} Qd6 {[%emt 0:01:51]} 25. Rce2 {[%emt 0:03:52]} Rad8 {[%emt 0:01:38]} 26. Qe1 {[%emt 0:01:49]} Qf8 {[%emt 0:00:18]} 27. h4 {[%emt 0:02:32]} h5 {[%emt 0:00:55]} 28. Nf4 {[%emt 0:01:38]} Rxe2 {[%emt 0:00:31]} 29. Rxe2 {[%emt 0:00:21]} Nf6 {[%emt 0:00:37]} 30. Nd3 {[%emt 0:03:45]} Ng4 {[%emt 0:00:29]} 31. Ne5 {[%emt 0:01:51]} Nxe5 {[%emt 0:00:13]} 32. Rxe5 {[%emt 0:00:05]} Qd6 {[%emt 0:00:25]} 33. Qg3 {[%emt 0:02:39]} Qf6 {[%emt 0:00:47]} 34. Kh2 {[%emt 0:02:07]} Kg7 {[%emt 0:00:18]} 35. Re4 {[%emt 0:02:17]} Qd6 {[%emt 0:00:39]} 36. Qxd6 {[%emt 0:00:54]} Rxd6 {[%emt 0:01:13]} 37. Re7 {[%emt 0:00:14]} b6 {[%emt 0:00:00]} 38. Kg3 {[%emt 0:00:47]} Kf6 {[%emt 0:00:00]} 39. Rc7 {[%emt 0:00:27]} Ke5 {[%emt 0:00:36]} 40. Rxf7 {[%emt 0:00:39]} b5 {[%emt 0:00:37]} 41. Rf4 {[%emt 0:51:00]} bxc4 {[%emt 0:03:30]} 42. bxc4 {[%emt 0:00:00]} Rb6 {[%emt 0:02:19]} 43. Kf3 {[%emt 0:00:00]} Rb4 {[%emt 0:04:20]} 44. g4 {[%emt 0:00:00]} hxg4+ {[%emt 0:02:53]} 45. Rxg4 {[%emt 0:00:00]} Kf6 {[%emt 0:03:46]} 46. Re4 {[%emt 0:00:00]} Kf5 {[%emt 0:02:58]} 47. Rf4+ {[%emt 0:00:00]} Ke5 {[%emt 0:00:24]} 48. Re4+ {[%emt 0:00:00]} Kf5 {[%emt 0:00:07]} 49. Rf4+ {[%emt 0:00:00]} Ke5 {[%emt 0:00:06]} 50. Kg4 {[%emt 0:00:00]} Rb2 {[%emt 0:06:41]} 51. Kg5 {[%emt 0:00:00]} Rxa2 {[%emt 0:01:24]} 52. Rg4 {[%emt 0:00:00]} Rb2 53. Kxg6 {[%emt 0:00:00]} Rb6+ 54. Kg5 {[%emt 0:00:00]} Rb8 55. h5 {[%emt 0:00:00]} Rg8+ 56. Kh4 {[%emt 0:00:00]} Rh8 57. Rg6 {[%emt 0:00:00]} Kd4 58. d6 {[%emt 0:00:00]} Kxc4 59. d7 {[%emt 0:00:00]} Kd5 60. h6 {[%emt 0:00:00]} c4 61. Kg4 {[%emt 0:00:01]} c3 62. h7 {[%emt 0:00:30]} Rd8 63. Rg8 {[%emt 0:00:30]} c2 64. h8=Q {[%emt 0:00:30]} c1=Q 65. Qh5+ {[%emt 0:00:30]} Kd6 66. Rxd8 {[%emt 0:00:30]} Qg1+ 67. Kf5 {[%emt 0:00:30]} Qb1+ 68. Kf6 {[%emt 0:00:30]} Qa1+ 69. Kg6 {[%emt 0:00:30]} Qb1+ 70. Kf7 {[%emt 0:00:30]} Qa2+ 1-0

[Event "Fagernes GM Swiss 2020"]
[Site "Fagernes"]
[Date "2020.10.04"]
[Round "1.19"]
[White "Sorensen, Simen"]
[Black "Carlsson, Ludvig"]
[Result "0-1"]
[ECO "D45"]
[WhiteElo "2047"]
[BlackElo "2281"]
[Annotator "ChessBase"]
[PlyCount "112"]
[EventDate "2020.10.04"]
[EventType "swiss"]
[EventCountry "NOR"]
[SourceTitle "playchess.com"]
[Source "ChessBase"]
[SourceQuality "1"]
[TimeControl "40/6000+30:2400+30"]

1. d4 {[%emt 0:00:00]} Nf6 {[%emt 0:00:00]} 2. c4 {[%emt 0:00:00]} e6 {[%emt 0:00:01]} 3. Nf3 {[%emt 0:00:07]} d5 {[%emt 0:00:06]} 4. Nc3 {[%emt 0:00:41]} c6 {[%emt 0:00:10]} 5. e3 {[%emt 0:01:28]} Nbd7 {[%emt 0:02:00]} 6. Qc2 {[%emt 0:01:21]} Bd6 {[%emt 0:00:14]} 7. b3 {[%emt 0:02:57]} O-O {[%emt 0:00:38]} 8. Bb2 {[%emt 0:01:39]} e5 {[%emt 0:02:06]} 9. cxd5 {[%emt 0:10:31]} cxd5 {[%emt 0:00:45]} 10. dxe5 {[%emt 0:01:42]} Nxe5 {[%emt 0:00:22]} 11. Be2 {[%emt 0:05:26]} Be6 {[%emt 0:15:41]} 12. O-O {[%emt 0:15:40]} Rc8 {[%emt 0:07:38]} 13. Qd1 {[%emt 0:01:51]} a6 {[%emt 0:18:31]} 14. Rc1 {[%emt 0:14:40]} Qe7 {[%emt 0:08:19]} 15. Nxe5 {[%emt 0:19:11]} Bxe5 {[%emt 0:00:10]} 16. Bf3 {[%emt 0:00:35]} Rc6 {[%emt 0:12:06]} 17. Qe2 {[%emt 0:02:39]} Qc7 {[%emt 0:05:39]} 18. Na4 {[%emt 0:07:14]} Bxh2+ {[%emt 0:11:30]} 19. Kh1 {[%emt 0:00:04]} Bd6 {[%emt 0:00:10]} 20. Rxc6 {[%emt 0:01:16]} Qxc6 {[%emt 0:00:08]} 21. Rc1 {[%emt 0:02:15]} Qb5 {[%emt 0:02:07]} 22. Qxb5 {[%emt 0:04:11]} axb5 {[%emt 0:00:09]} 23. Nc5 {[%emt 0:05:02]} Rb8 {[%emt 0:03:07]} 24. Bxf6 {[%emt 0:01:14]} gxf6 {[%emt 0:00:10]} 25. Nd3 {[%emt 0:00:47]} Kf8 {[%emt 0:02:55]} 26. g3 {[%emt 0:00:57]} Ra8 {[%emt 0:00:54]} 27. Rc2 {[%emt 0:00:42]} Ke7 {[%emt 0:00:57]} 28. Kg2 {[%emt 0:01:14]} Bf5 {[%emt 0:01:35]} 29. Rd2 {[%emt 0:00:53]} Be4 {[%emt 0:01:15]} 30. Bxe4 {[%emt 0:01:28]} dxe4 {[%emt 0:00:07]} 31. Nf4 {[%emt 0:00:24]} Bxf4 {[%emt 0:01:00]} 32. exf4 {[%emt 0:00:22]} Ke6 {[%emt 0:00:53]} 33. Kh3 {[%emt 0:01:37]} f5 {[%emt 0:01:45]} 34. Kh4 {[%emt 0:00:54]} Rc8 {[%emt 0:01:56]} 35. Kg5 {[%emt 0:02:23]} Rc1 {[%emt 0:00:18]} 36. Kh6 {[%emt 0:00:28]} Rh1+ {[%emt 0:00:31]} 37. Kg7 {[%emt 0:00:15]} Rh2 {[%emt 0:00:29]} 38. a4 {[%emt 0:01:32]} h5 {[%emt 0:02:55]} 39. Rc2 {[%emt 0:03:13]} h4 {[%emt 0:01:49]} 40. gxh4 {[%emt 0:00:35]} bxa4 {[%emt 0:00:56]} 41. bxa4 {[%emt 0:40:21]} Rxh4 {[%emt 0:40:09]} 42. Rb2 {[%emt 0:00:00]} Rg4+ {[%emt 0:00:00]} 43. Kh6 {[%emt 0:00:00]} Rxf4 {[%emt 0:00:00]} 44. Kg5 {[%emt 0:00:00]} Rg4+ {[%emt 0:00:00]} 45. Kh5 {[%emt 0:00:00]} Rg2 {[%emt 0:00:00]} 46. a5 {[%emt 0:00:00]} Ke5 {[%emt 0:00:00]} 47. Kh4 {[%emt 0:00:00]} f6 {[%emt 0:00:00]} 48. Rxb7 {[%emt 0:00:00]} Kf4 {[%emt 0:00:00]} 49. Kh3 {[%emt 0:00:00]} Rxf2 {[%emt 0:00:00]} 50. a6 {[%emt 0:00:00]} Ra2 {[%emt 0:00:00]} 51. a7 {[%emt 0:00:00]} e3 {[%emt 0:00:00]} 52. Re7 {[%emt 0:00:00]} Kf3 {[%emt 0:00:00]} 53. Rf7 {[%emt 0:00:00]} e2 {[%emt 0:00:00]} 54. Rxf6 {[%emt 0:00:00]} f4 {[%emt 0:00:00]} 55. Re6 {[%emt 0:00:00]} Rxa7 {[%emt 0:00:00]} 56. Kh2 {[%emt 0:00:00]} Ra1 {[%emt 0:00:00]} 0-1

[Event "Fagernes GM Swiss 2020"]
[Site "Fagernes"]
[Date "2020.10.04"]
[Round "1.20"]
[White "Ingebretsen, Jens E"]
[Black "Eliseev, Sergey"]
[Result "1-0"]
[ECO "A30"]
[WhiteElo "2220"]
[BlackElo "2025"]
[Annotator "ChessBase"]
[PlyCount "99"]
[EventDate "2020.10.04"]
[EventType "swiss"]
[EventCountry "NOR"]
[SourceTitle "playchess.com"]
[Source "ChessBase"]
[SourceQuality "1"]
[TimeControl "40/6000+30:2400+30"]

1. c4 {[%emt 0:00:00]} c5 {[%emt 0:00:00]} 2. Nf3 {[%emt 0:00:00]} g6 {[%emt 0:00:00]} 3. e3 {[%emt 0:00:00]} Bg7 {[%emt 0:00:12]} 4. d4 {[%emt 0:00:06]} cxd4 {[%emt 0:02:36]} 5. exd4 {[%emt 0:00:07]} d5 {[%emt 0:00:57]} 6. Nc3 {[%emt 0:01:22]} Bg4 {[%emt 0:06:31]} 7. cxd5 {[%emt 0:03:08]} Nd7 {[%emt 0:21:20]} 8. Be2 {[%emt 0:03:37]} Nh6 {[%emt 0:03:22]} 9. Bxh6 {[%emt 0:07:59]} Bxh6 {[%emt 0:00:14]} 10. O-O {[%emt 0:00:34]} O-O {[%emt 0:14:03]} 11. h3 {[%emt 0:01:20]} Bxf3 {[%emt 0:00:24]} 12. Bxf3 {[%emt 0:00:02]} Nb6 {[%emt 0:02:06]} 13. Qb3 {[%emt 0:03:31]} Qc7 {[%emt 0:06:24]} 14. Rfe1 {[%emt 0:01:38]} a6 {[%emt 0:04:40]} 15. Re2 {[%emt 0:02:14]} Bg7 {[%emt 0:17:11]} 16. Rae1 {[%emt 0:01:15]} Bxd4 {[%emt 0:03:01]} 17. Rxe7 {[%emt 0:01:36]} Qc5 {[%emt 0:00:59]} 18. R7e2 {[%emt 0:01:47]} Qc4 {[%emt 0:09:52]} 19. Rd1 {[%emt 0:04:51]} Rac8 {[%emt 0:04:20]} 20. Qxc4 {[%emt 0:02:05]} Rxc4 {[%emt 0:00:15]} 21. Ne4 {[%emt 0:01:15]} Bg7 {[%emt 0:03:10]} 22. b3 {[%emt 0:00:53]} Rcc8 {[%emt 0:00:35]} 23. Nd6 {[%emt 0:03:13]} Rc7 {[%emt 0:00:52]} 24. Ne8 {[%emt 0:07:12]} Rd7 {[%emt 0:00:48]} 25. d6 {[%emt 0:01:54]} f5 {[%emt 0:02:09]} 26. Nc7 {[%emt 0:09:00]} Rfd8 {[%emt 0:01:48]} 27. Re7 {[%emt 0:06:23]} Bf8 {[%emt 0:02:01]} 28. Nd5 {[%emt 0:15:15]} Nxd5 {[%emt 0:03:31]} 29. Bxd5+ {[%emt 0:00:47]} Kh8 {[%emt 0:00:04]} 30. Rxd7 {[%emt 0:00:16]} Rxd7 {[%emt 0:00:00]} 31. Bxb7 {[%emt 0:00:34]} a5 {[%emt 0:01:26]} 32. Rd5 {[%emt 0:01:23]} Rxd6 {[%emt 0:00:34]} 33. Rxa5 {[%emt 0:02:11]} Rd1+ {[%emt 0:00:02]} 34. Kh2 {[%emt 0:00:01]} Rd2 {[%emt 0:00:15]} 35. Kg3 {[%emt 0:03:57]} Rd3+ {[%emt 0:01:03]} 36. f3 {[%emt 0:06:25]} Bd6+ {[%emt 0:00:05]} 37. Kf2 {[%emt 0:00:07]} Rd2+ {[%emt 0:00:06]} 38. Kf1 {[%emt 0:01:58]} Bg3 {[%emt 0:00:12]} 39. Ba6 {[%emt 0:06:09]} Rd1+ {[%emt 0:00:20]} 40. Ke2 {[%emt 0:00:09]} Rg1 {[%emt 0:00:14]} 41. Bc4 {[%emt 0:42:10]} Rxg2+ {[%emt 0:41:02]} 42. Ke3 {[%emt 0:00:31]} Bf2+ {[%emt 0:00:00]} 43. Kd3 {[%emt 0:00:00]} Rg3 {[%emt 0:00:00]} 44. Ke2 {[%emt 0:00:00]} Bb6 {[%emt 0:00:00]} 45. Ra8+ {[%emt 0:00:00]} Kg7 {[%emt 0:00:00]} 46. a4 {[%emt 0:00:00]} Rg2+ {[%emt 0:00:00]} 47. Kd3 {[%emt 0:00:00]} Ra2 {[%emt 0:00:00]} 48. Bd5 {[%emt 0:00:00]} f4 {[%emt 0:00:00]} 49. b4 {[%emt 0:00:00]} Be3 {[%emt 0:00:00]} 50. Bxa2 {[%emt 0:00:00]} 1-0

[Event "Fagernes GM Swiss 2020"]
[Site "Fagernes"]
[Date "2020.10.04"]
[Round "1.21"]
[White "Kvendseth, Thyra"]
[Black "Nielsen, Andre"]
[Result "0-1"]
[ECO "E63"]
[WhiteElo "2017"]
[BlackElo "2218"]
[Annotator "ChessBase"]
[PlyCount "62"]
[EventDate "2020.10.04"]
[EventType "swiss"]
[EventCountry "NOR"]
[SourceTitle "playchess.com"]
[Source "ChessBase"]
[SourceQuality "1"]
[TimeControl "40/6000+30:2400+30"]

1. Nf3 {[%emt 0:00:00]} Nf6 {[%emt 0:00:00]} 2. g3 {[%emt 0:00:00]} g6 {[%emt 0:00:13]} 3. Bg2 {[%emt 0:00:18]} Bg7 {[%emt 0:00:25]} 4. O-O {[%emt 0:00:16]} O-O {[%emt 0:00:32]} 5. d4 {[%emt 0:01:02]} d6 {[%emt 0:00:25]} 6. c4 {[%emt 0:01:55]} Nc6 {[%emt 0:00:58]} 7. Nc3 {[%emt 0:01:47]} a6 {[%emt 0:01:19]} 8. e4 {[%emt 0:01:37]} Bg4 {[%emt 0:01:03]} 9. Be3 {[%emt 0:03:54]} Re8 {[%emt 0:02:18]} 10. Qd2 {[%emt 0:04:52]} e5 {[%emt 0:07:57]} 11. d5 {[%emt 0:00:42]} Bxf3 {[%emt 0:01:15]} 12. Bxf3 {[%emt 0:02:18]} Nd4 {[%emt 0:00:21]} 13. Bg2 {[%emt 0:01:30]} c5 {[%emt 0:04:07]} 14. dxc6 {[%emt 0:04:16]} bxc6 {[%emt 0:01:13]} 15. b4 {[%emt 0:08:10]} Ng4 {[%emt 0:16:54]} 16. Rfd1 {[%emt 0:06:20]} Nxe3 {[%emt 0:19:32]} 17. fxe3 {[%emt 0:00:35]} Ne6 {[%emt 0:02:01]} 18. Rab1 {[%emt 0:02:52]} Bh6 {[%emt 0:05:01]} 19. Na4 {[%emt 0:06:33]} Qg5 {[%emt 0:03:32]} 20. Qf2 {[%emt 0:05:01]} Qxe3 {[%emt 0:08:58]} 21. Rxd6 {[%emt 0:00:47]} Qa3 {[%emt 0:02:41]} 22. Qc2 {[%emt 0:04:41]} Nd4 {[%emt 0:05:54]} 23. Qd1 {[%emt 0:00:49]} Rad8 {[%emt 0:04:53]} 24. Rxd8 {[%emt 0:05:04]} Rxd8 {[%emt 0:00:10]} 25. Kh1 {[%emt 0:00:53]} Qxa2 {[%emt 0:05:39]} 26. Nc5 {[%emt 0:01:32]} Qxc4 {[%emt 0:04:08]} 27. Bf1 {[%emt 0:01:08]} Qa2 {[%emt 0:02:10]} 28. Bxa6 {[%emt 0:03:25]} Nf3 {[%emt 0:07:35]} 29. Qxf3 {[%emt 0:00:32]} Qxb1+ {[%emt 0:00:14]} 30. Bf1 {[%emt 0:00:16]} Qxb4 {[%emt 0:01:15]} 31. Nd3 {[%emt 0:01:41]} Qd4 {[%emt 0:00:27]} 0-1

[Event "Fagernes GM Swiss 2020"]
[Site "Fagernes"]
[Date "2020.10.04"]
[Round "1.22"]
[White "Dahl, Trygve"]
[Black "Skaslien, Ingrid"]
[Result "0-1"]
[ECO "C14"]
[WhiteElo "2211"]
[BlackElo "1976"]
[Annotator "ChessBase"]
[PlyCount "60"]
[EventDate "2020.10.04"]
[EventType "swiss"]
[EventCountry "NOR"]
[SourceTitle "playchess.com"]
[Source "ChessBase"]
[SourceQuality "1"]
[TimeControl "40/6000+30:2400+30"]

1. e4 {[%emt 0:00:00]} e6 {[%emt 0:00:00]} 2. d4 {[%emt 0:00:00]} d5 {[%emt 0:00:00]} 3. Nc3 {[%emt 0:00:00]} Nf6 {[%emt 0:00:17]} 4. Bg5 {[%emt 0:00:51]} Be7 {[%emt 0:00:20]} 5. e5 {[%emt 0:00:06]} Nfd7 {[%emt 0:00:09]} 6. Bxe7 {[%emt 0:00:08]} Qxe7 {[%emt 0:00:07]} 7. f4 {[%emt 0:00:04]} a6 {[%emt 0:00:30]} 8. Qg4 {[%emt 0:01:18]} O-O {[%emt 0:14:38]} 9. Nf3 {[%emt 0:08:17]} c5 {[%emt 0:04:53]} 10. f5 {[%emt 0:04:46]} exf5 {[%emt 0:16:15]} 11. Qxf5 {[%emt 0:03:58]} Nb6 {[%emt 0:04:40]} 12. Qh5 {[%emt 0:03:27]} cxd4 {[%emt 0:10:48]} 13. Nxd4 {[%emt 0:10:51]} Re8 {[%emt 0:11:43]} 14. Nf3 {[%emt 0:01:07]} g6 {[%emt 0:02:19]} 15. Qh6 {[%emt 0:02:35]} Bg4 {[%emt 0:01:39]} 16. O-O-O {[%emt 0:01:44]} Bxf3 {[%emt 0:00:24]} 17. gxf3 {[%emt 0:00:01]} Qxe5 {[%emt 0:00:18]} 18. f4 {[%emt 0:02:49]} Qe3+ {[%emt 0:03:02]} 19. Kb1 {[%emt 0:00:18]} d4 {[%emt 0:03:52]} 20. Ne2 {[%emt 0:01:03]} Nc6 {[%emt 0:03:50]} 21. h4 {[%emt 0:08:53]} Qe4 {[%emt 0:06:06]} 22. Rh2 {[%emt 0:07:27]} Nd5 {[%emt 0:02:32]} 23. Rf2 {[%emt 0:15:30]} Ncb4 {[%emt 0:04:25]} 24. Nc1 {[%emt 0:04:36]} Ne3 {[%emt 0:03:17]} 25. Re1 {[%emt 0:07:15]} Qc6 {[%emt 0:02:06]} 26. Qg5 {[%emt 0:05:01]} Nbxc2 {[%emt 0:02:29]} 27. Ree2 {[%emt 0:03:30]} Rac8 {[%emt 0:01:35]} 28. Nd3 {[%emt 0:03:32]} Qc4 {[%emt 0:02:36]} 29. Rd2 {[%emt 0:06:07]} Nxf1 {[%emt 0:02:09]} 30. Rxf1 {[%emt 0:00:18]} Re1+ {[%emt 0:00:59]} 0-1

[Event "Fagernes GM Swiss 2020"]
[Site "Fagernes"]
[Date "2020.10.04"]
[Round "1.23"]
[White "Tenold, Andreas"]
[Black "Dolzhikova, Olga"]
[Result "0-1"]
[ECO "B06"]
[WhiteElo "1935"]
[BlackElo "2208"]
[Annotator "ChessBase"]
[PlyCount "88"]
[EventDate "2020.10.04"]
[EventType "swiss"]
[EventCountry "NOR"]
[SourceTitle "playchess.com"]
[Source "ChessBase"]
[SourceQuality "1"]
[TimeControl "40/6000+30:2400+30"]

1. d4 {[%emt 0:00:00]} g6 {[%emt 0:00:33]} 2. e4 {[%emt 0:00:00]} Bg7 {[%emt 0:00:05]} 3. Nc3 {[%emt 1:41:30]} c5 {[%emt 0:01:17]} 4. dxc5 {[%emt 0:00:00]} Bxc3+ {[%emt 0:01:11]} 5. bxc3 {[%emt 0:00:00]} Nf6 {[%emt 0:02:53]} 6. Bd3 {[%emt 0:00:00]} Qa5 {[%emt 0:00:49]} 7. Ne2 {[%emt 0:00:00]} Qxc5 {[%emt 0:07:00]} 8. O-O {[%emt 0:00:00]} d6 {[%emt 0:08:35]} 9. Be3 {[%emt 0:00:00]} Qa5 {[%emt 0:03:19]} 10. Qd2 {[%emt 0:00:00]} Nbd7 {[%emt 0:06:03]} 11. Rfb1 {[%emt 0:00:00]} O-O {[%emt 0:06:44]} 12. a4 {[%emt 0:00:00]} Nc5 {[%emt 0:13:15]} 13. f3 {[%emt 0:00:00]} Bd7 {[%emt 0:01:55]} 14. Nd4 {[%emt 0:00:00]} Rfc8 {[%emt 0:08:11]} 15. Nb3 {[%emt 0:00:00]} Nxb3 {[%emt 0:07:20]} 16. Rxb3 {[%emt 0:00:00]} Bc6 {[%emt 0:01:15]} 17. c4 {[%emt 0:00:00]} Qxd2 {[%emt 0:06:03]} 18. Bxd2 {[%emt 0:00:00]} a5 {[%emt 0:14:39]} 19. Bc3 {[%emt 0:00:00]} Nd7 {[%emt 0:00:25]} 20. Bd4 {[%emt 0:00:00]} Kf8 {[%emt 0:01:50]} 21. Kf2 {[%emt 0:00:00]} e6 {[%emt 0:02:17]} 22. g4 {[%emt 0:00:00]} f6 {[%emt 0:00:52]} 23. h4 {[%emt 0:00:00]} Ke7 {[%emt 0:01:34]} 24. Kg3 {[%emt 0:00:00]} Rg8 {[%emt 0:01:47]} 25. Re1 {[%emt 0:00:00]} Rac8 {[%emt 0:01:40]} 26. Rb2 {[%emt 0:00:00]} Rc7 {[%emt 0:01:08]} 27. Reb1 {[%emt 0:02:05]} Nc5 {[%emt 0:02:40]} 28. Bxc5 {[%emt 0:00:46]} dxc5 {[%emt 0:00:03]} 29. Re1 {[%emt 0:02:08]} Rd7 {[%emt 0:01:49]} 30. f4 {[%emt 0:01:18]} e5 {[%emt 0:02:38]} 31. Rbb1 {[%emt 0:02:20]} Rd4 {[%emt 0:02:02]} 32. Re2 {[%emt 0:02:32]} Rgd8 {[%emt 0:01:18]} 33. Rf1 {[%emt 0:01:11]} exf4+ {[%emt 0:00:57]} 34. Kxf4 {[%emt 0:00:30]} f5 {[%emt 0:00:39]} 35. Kg3 {[%emt 0:01:32]} fxe4 {[%emt 0:00:15]} 36. Rf4 {[%emt 0:00:06]} Rf8 {[%emt 0:01:19]} 37. Bxe4 {[%emt 0:00:43]} Rxf4 {[%emt 0:00:17]} 38. Kxf4 {[%emt 0:00:05]} Rxc4 {[%emt 0:00:32]} 39. Kf3 {[%emt 0:01:00]} Bxe4+ {[%emt 0:01:16]} 40. Rxe4+ {[%emt 0:00:11]} Rxe4 {[%emt 0:00:08]} 41. Kxe4 {[%emt 0:40:02]} b5 {[%emt 0:04:12]} 42. axb5 {[%emt 0:00:00]} a4 {[%emt 0:00:09]} 43. Kd3 {[%emt 0:00:00]} a3 {[%emt 0:01:25]} 44. Kc3 {[%emt 0:00:00]} c4 {[%emt 0:00:07]} 0-1